fUSD/lending_fUSD_20240609
["ID","MTS","AMOUNT","RATE_DAILY","PERIOD"]
[328877332,1717944645299,-154.994344,0.00026987,7]
[328877334,1717944645310,-152.4753,0.00026987,7]
[328877336,1717944645320,-151.0,0.00026987,7]
[328877338,1717944645330,-151.0,0.00026987,7]
[328877340,1717944645340,-210.413896,0.00026987,7]
[328877342,1717944645350,-151.0,0.00026987,7]
[328877344,1717944645361,-151.0,0.00026987,7]
[328877346,1717944645371,-151.0,0.00026987,7]
[328877348,1717944645381,-154.351979,0.00026987,7]
[328877350,1717944645391,-662.035008,0.00026987,7]
[328877352,1717944645400,-662.035008,0.00026987,7]
[328877354,1717944645411,-151.0,0.00026987,7]
[328877356,1717944645420,-151.0,0.00026987,7]
[328877359,1717944645430,-151.0,0.00026987,7]
[328877361,1717944645439,-151.0,0.00026987,7]
[328877363,1717944645448,-151.0,0.00026987,7]
[328877365,1717944645461,-151.0,0.00026987,7]
[328877367,1717944645470,-402.647195,0.00026987,7]
[328877369,1717944645480,-402.647195,0.00026987,7]
[328877371,1717944645489,-151.0,0.00026987,7]
[328877373,1717944645499,-151.0,0.00026987,7]
[328877375,1717944645509,-151.0,0.00026987,7]
[328877377,1717944645519,-211.430945,0.00026987,7]
[328877378,1717944645528,-151.0,0.00026987,7]
[328877380,1717944645539,-211.430945,0.00026987,7]
[328877383,1717944645548,-151.0,0.00026987,7]
[328877384,1717944645559,-151.0,0.00026987,7]
[328877386,1717944645570,-228.217838,0.00026987,7]
[328877387,1717944645580,-151.0,0.00026987,7]
[328877388,1717944645591,-228.217838,0.00026987,7]
[328877389,1717944645601,-151.0,0.00026987,7]
[328877390,1717944645611,-151.0,0.00026987,7]
[328877391,1717944645620,-151.0,0.00026987,7]
[328877392,1717944645631,-151.0,0.00026987,7]
[328877393,1717944645641,-151.0,0.00026987,7]
[328877394,1717944645651,-151.0,0.00026987,7]
[328877395,1717944645661,-151.0,0.00026987,7]
[328877396,1717944645671,-151.0,0.00026987,7]
[328877398,1717944645681,-151.0,0.00026987,7]
[328877400,1717944645691,-151.0,0.00026987,7]
[328877402,1717944645701,-151.0,0.00026987,7]
[328877404,1717944645712,-895.733874,0.00026987,7]
[328877406,1717944645724,-151.0,0.00026987,7]
[328877408,1717944645734,-895.733874,0.00026987,7]
[328877410,1717944645743,-151.0,0.00026987,7]
[328877412,1717944645753,-151.0,0.00026987,7]
[328877414,1717944645762,-151.0,0.00026987,7]
[328877415,1717944645772,-151.0,0.00026987,7]
[328877417,1717944645782,-2738.771996,0.00026987,7]
[328877419,1717944645794,-2738.771996,0.00026987,7]
[328877422,1717944645804,-151.0,0.00026987,7]
[328877423,1717944645814,-303.9736,0.00026987,7]
[328877426,1717944645824,-303.9736,0.00026987,7]
[328877427,1717944645834,-299.025872,0.00026987,7]
[328877430,1717944645845,-299.025872,0.00026987,7]
[328877431,1717944645855,-151.0,0.00026987,7]
[328877433,1717944645865,-151.0,0.00026987,7]
[328877435,1717944645875,-151.0,0.00026987,7]
[328877437,1717944645885,-165.212234,0.00026987,7]
[328877439,1717944645895,-151.0,0.00026987,7]
[328877441,1717944645905,-165.212234,0.00026987,7]
[328877443,1717944645916,-540.449146,0.00026987,7]
[328877445,1717944645925,-151.0,0.00026987,7]
[328877447,1717944645935,-540.449146,0.00026987,7]
[328877449,1717944645945,-410.211818,0.00026987,7]
[328877451,1717944645954,-151.0,0.00026987,7]
[328877453,1717944645963,-410.211818,0.00026987,7]
[328877455,1717944645973,-366.325109,0.00026987,7]
[328877457,1717944645982,-640.727778,0.00026987,7]
[328877459,1717944645992,-366.325109,0.00026987,7]
[328877462,1717944646002,-640.727778,0.00026987,7]
[328877464,1717944646011,-150.0,0.00026988,2]
[328877466,1717944646021,-150.0,0.00026988,2]
[328877468,1717944646031,-150.0,0.00026988,2]
[328877470,1717944646041,-150.0,0.00026989,2]
[328877471,1717944646051,-1443.5213427,0.00026997,2]
[328877473,1717944646061,-1720.5987575,0.00026998,2]
[328877474,1717944646072,-47990.2554537,0.00026998,2]
[328877476,1717944646081,-150.0,0.00026998,2]
[328877478,1717944646092,-579.16614712,0.00026999,7]
[328877480,1717944646102,-3000.0,0.00026999,2]
[328877482,1717944646112,-1122.70260775,0.00026999,2]
[328877484,1717944646123,-17796.04120922,0.00027,2]
[328877486,1717944646134,-1000.0,0.00027,7]
[328877488,1717944646143,-1010.0,0.00027,7]
[328877490,1717944646153,-3592.97359775,0.00027,2]
[328877492,1717944646164,-156.45762046,0.00027,4]
[328877494,1717944646174,-15504.09844362,0.00027,2]
[328877496,1717944646184,-21564.0,0.00027,7]
[328877497,1717944646194,-20000.0,0.00027,3]
[328877499,1717944646203,-169.14140858,0.00027,2]
[328877501,1717944646212,-151.0,0.00027,7]
[328877503,1717944646222,-151.0,0.00027,7]
[328877505,1717944646232,-1300.0,0.00027,2]
[328877507,1717944646242,-181.334653,0.00027,7]
[328877509,1717944646253,-151.0,0.00027,7]
[328877511,1717944646262,-151.0,0.00027,7]
[328877512,1717944646272,-151.0,0.00027,7]
[328877514,1717944646282,-151.0,0.00027,7]
[328877516,1717944646292,-151.0,0.00027,7]
[328877518,1717944646302,-151.0,0.00027,7]
[328877520,1717944646312,-156.78611,0.00027,7]
[328877522,1717944646322,-151.0,0.00027,7]
[328877524,1717944646331,-283.657524,0.00027,7]
[328877526,1717944646341,-174.978543,0.00027,7]
[328877528,1717944646351,-174.978543,0.00027,7]
[328877529,1717944646361,-174.978543,0.00027,7]
[328877531,1717944646371,-174.978543,0.00027,7]
[328877533,1717944646381,-174.978543,0.00027,7]
[328877535,1717944646391,-174.978535,0.00027,7]
[328877537,1717944646401,-151.0,0.00027,7]
[328877539,1717944646411,-168.0,0.00027,7]
[328877541,1717944646421,-168.0,0.00027,7]
[328877543,1717944646431,-168.0,0.00027,7]
[328877545,1717944646441,-168.0,0.00027,7]
[328877547,1717944646451,-168.0,0.00027,7]
[328877549,1717944646461,-168.0,0.00027,7]
[328877551,1717944646471,-151.0,0.00027,7]
[328877553,1717944646481,-159.85217,0.00027,7]
[328877555,1717944646491,-159.85217,0.00027,7]
[328877557,1717944646501,-151.0,0.00027,7]
[328877559,1717944646511,-183.709206,0.00027,7]
[328877560,1717944646520,-3557.539151,0.00027,2]
[328877562,1717944646530,-183.709206,0.00027,7]
[328877564,1717944646540,-154.704264,0.00027,7]
[328877566,1717944646549,-151.0,0.00027,7]
[328877568,1717944646559,-154.704264,0.00027,7]
[328877570,1717944646568,-151.0,0.00027,7]
[328877572,1717944646578,-212.992456,0.00027,7]
[328877574,1717944646588,-487.965915,0.00027,7]
[328877576,1717944646599,-212.992456,0.00027,7]
[328877578,1717944646609,-487.965915,0.00027,7]
[328877580,1717944646619,-151.0,0.00027,7]
[328877582,1717944646630,-151.0,0.00027,7]
[328877584,1717944646640,-151.0,0.00027,7]
[328877586,1717944646650,-151.0,0.00027,7]
[328877588,1717944646663,-151.0,0.00027,7]
[328877590,1717944646673,-151.0,0.00027,7]
[328877592,1717944646683,-180.90381665,0.00027,4]
[328877594,1717944646694,-211.4669561,0.00027,4]
[328877596,1717944646704,-224.90929074,0.00027,4]
[328877598,1717944646718,-227.05512469,0.00027,4]
[328877600,1717944646728,-171.00496755,0.00027,4]
[328877602,1717944646738,-291.45099655,0.00027,4]
[328877604,1717944646748,-155.43141599,0.00027,4]
[328877605,1717944646759,-662.035008,0.00027,7]
[328877607,1717944646769,-662.035008,0.00027,7]
[328877609,1717944646779,-151.0,0.00027,7]
[328877611,1717944646790,-151.0,0.00027,7]
[328877613,1717944646800,-151.0,0.00027,7]
[328877615,1717944646810,-151.0,0.00027,7]
[328877616,1717944646820,-151.0,0.00027,7]
[328877617,1717944646830,-241.053994,0.00027,7]
[328877618,1717944646840,-402.647195,0.00027,7]
[328877619,1717944646850,-402.647195,0.00027,7]
[328877620,1717944646860,-151.0,0.00027,7]
[328877621,1717944646870,-151.0,0.00027,7]
[328877622,1717944646880,-151.0,0.00027,7]
[328877623,1717944646891,-211.430945,0.00027,7]
[328877624,1717944646900,-151.0,0.00027,7]
[328877625,1717944646910,-211.430945,0.00027,7]
[328877626,1717944646920,-151.0,0.00027,7]
[328877627,1717944646931,-151.0,0.00027,7]
[328877628,1717944646941,-228.217838,0.00027,7]
[328877629,1717944646951,-151.0,0.00027,7]
[328877630,1717944646960,-228.217838,0.00027,7]
[328877631,1717944646971,-151.0,0.00027,7]
[328877632,1717944646980,-151.0,0.00027,7]
[328877633,1717944646990,-151.0,0.00027,7]
[328877634,1717944647000,-151.0,0.00027,7]
[328877635,1717944647009,-151.0,0.00027,7]
[328877636,1717944647018,-151.0,0.00027,7]
[328877637,1717944647027,-151.0,0.00027,7]
[328877638,1717944647037,-151.0,0.00027,7]
[328877639,1717944647046,-151.0,0.00027,7]
[328877640,1717944647055,-151.0,0.00027,7]
[328877641,1717944647065,-159.895996,0.00027,7]
[328877642,1717944647074,-895.733874,0.00027,7]
[328877643,1717944647085,-151.0,0.00027,7]
[328877644,1717944647095,-895.733874,0.00027,7]
[328877645,1717944647105,-151.0,0.00027,7]
[328877646,1717944647115,-151.0,0.00027,7]
[328877647,1717944647125,-151.0,0.00027,7]
[328877648,1717944647134,-151.0,0.00027,7]
[328877649,1717944647143,-2738.771996,0.00027,7]
[328877650,1717944647154,-2738.771996,0.00027,7]
[328877651,1717944647165,-151.0,0.00027,7]
[328877652,1717944647175,-303.9736,0.00027,7]
[328877653,1717944647184,-303.9736,0.00027,7]
[328877654,1717944647194,-299.025872,0.00027,7]
[328877655,1717944647203,-299.025872,0.00027,7]
[328877656,1717944647212,-151.0,0.00027,7]
[328877657,1717944647223,-151.0,0.00027,7]
[328877658,1717944647232,-151.0,0.00027,7]
[328877659,1717944647242,-165.212234,0.00027,7]
[328877660,1717944647254,-151.0,0.00027,7]
[328877661,1717944647265,-165.212234,0.00027,7]
[328877662,1717944647275,-151.0,0.00027,7]
[328877663,1717944647284,-540.449146,0.00027,7]
[328877664,1717944647293,-151.0,0.00027,7]
[328877665,1717944647303,-540.449146,0.00027,7]
[328877666,1717944647313,-410.211818,0.00027,7]
[328877667,1717944647324,-151.0,0.00027,7]
[328877668,1717944647334,-410.211818,0.00027,7]
[328877669,1717944647344,-366.325109,0.00027,7]
[328877670,1717944647354,-640.727778,0.00027,7]
[328877671,1717944647363,-366.325109,0.00027,7]
[328877672,1717944647372,-640.727778,0.00027,7]
[328877673,1717944647381,-200.0,0.00027,2]
[328877674,1717944647390,-151.0,0.00027,7]
[328877675,1717944647400,-151.0,0.00027,7]
[328877676,1717944647411,-151.0,0.00027,7]
[328877677,1717944647420,-151.191176,0.00027,7]
[328877678,1717944647430,-292.19824216,0.00027015,2]
[328877679,1717944647441,-752.932842,0.00027024,2]
[328877680,1717944647451,-218.71018854,0.00027024,2]
[328877681,1717944647460,-742.16626991,0.00027043,2]
[328877682,1717944647470,-500.0,0.00027044,7]
[328877683,1717944647480,-1241.2463,0.0002706,2]
[328877684,1717944647490,-154.99010485,0.00027062,2]
[328877685,1717944647500,-158.17438114,0.00027077,2]
[328877686,1717944647510,-151.0,0.00027082,7]
[328877687,1717944647520,-151.36013313,0.00027088,2]
[328877688,1717944647530,-152.0,0.00027113,4]
[328877689,1717944647541,-320.23453188,0.0002715,2]
[328877690,1717944647562,-223.56162716,0.00027154,2]
[328877691,1717944647578,-2732.55435557,0.00027161,2]
[328877692,1717944647589,-157.57898843,0.00027191,2]
[328877693,1717944647600,-2010.60105363,0.000272,2]
[328877694,1717944647609,-850.69,0.00027205,2]
[328877695,1717944647620,-417.34,0.00027205,2]
[328877696,1717944647630,-850.69,0.00027205,2]
[328877697,1717944647641,-417.34,0.00027205,2]
[328877698,1717944647651,-850.69,0.00027205,2]
[328877699,1717944647661,-417.34,0.00027205,2]
[328877700,1717944647671,-417.34,0.00027205,2]
[328877701,1717944647681,-412.54,0.00027205,2]
[328877702,1717944647692,-154.78947006,0.00027214,2]
[328877703,1717944647701,-161.25760976,0.00027218,2]
[328877704,1717944647715,-154.99010485,0.00027225,2]
[328877705,1717944647725,-1645.59849073,0.00027233,2]
[328877706,1717944647736,-223.56162716,0.00027282,2]
[328877707,1717944647747,-155.01604512,0.00027289,2]
[328877708,1717944647759,-151.0,0.000273,7]
[328877709,1717944647769,-166.66666667,0.00027315,2]
[328877710,1717944647779,-500.0,0.00027317,7]
[328877711,1717944647790,-154.78947006,0.00027366,2]
[328877712,1717944647801,-158.8237338,0.00027372,2]
[328877713,1717944647811,-292.19824216,0.00027376,2]
[328877714,1717944647821,-155.01604512,0.00027388,2]
[328877715,1717944647832,-438.112191,0.0002739,2]
[328877716,1717944647842,-1000.0,0.00027397,30]
[328877717,1717944647852,-1000.0,0.00027397,30]
[328877718,1717944647862,-1000.0,0.00027397,30]
[328877719,1717944647873,-1000.0,0.00027397,30]
[328877720,1717944647883,-1059.91854375,0.00027397,30]
[328877721,1717944647893,-150.0,0.00027397,2]
[328877722,1717944647903,-151.0,0.00027397,7]
[328877723,1717944647913,-151.0,0.00027397,7]
[328877724,1717944647922,-500.0,0.00027397,2]
[328877725,1717944648051,-306.73276599,0.00027397,2]
[328877726,1717944648061,-500.0,0.00027397,2]
[328877727,1717944648071,-150.0,0.00027397,2]
[328877728,1717944648081,-151.0,0.00027397,7]
[328877729,1717944648091,-151.0,0.00027397,7]
[328877730,1717944648102,-235.46,0.00027397,10]
[328877731,1717944648112,-2492.88028221,0.000274,2]
[328877732,1717944648121,-250.0,0.000274,2]
[328877733,1717944648131,-600.0,0.000274,2]
[328877734,1717944648141,-500.0,0.000274,2]
[328877735,1717944648151,-591.21288238,0.000274,2]
[328877736,1717944648162,-174.36890067,0.000274,2]
[328877737,1717944648172,-151.36013313,0.000274,2]
[328877738,1717944648182,-150.0,0.000274,5]
[328877739,1717944648192,-182.02,0.000274,2]
[328877740,1717944648202,-182.02,0.000274,2]
[328877741,1717944648212,-182.02,0.000274,2]
[328877742,1717944648221,-182.02,0.000274,2]
[328877743,1717944648231,-182.02,0.000274,2]
[328877744,1717944648241,-182.02,0.000274,2]
[328877745,1717944648251,-182.02,0.000274,2]
[328877746,1717944648262,-2000.0,0.000274,2]
[328877747,1717944648272,-158.17438114,0.00027425,2]
[328877748,1717944648282,-2732.55435557,0.00027435,2]
[328877749,1717944648292,-185.16173344,0.00027442,2]
[328877750,1717944648301,-154.99010485,0.00027446,2]
[328877751,1717944648311,-156.9132965,0.0002746,2]
[328877752,1717944648321,-189.71863603,0.000275,2]
[328877753,1717944648331,-223.56162716,0.00027501,2]
[328877754,1717944648342,-246.280408,0.00027534,7]
[328877755,1717944648352,-150.0,0.00027534,2]
[328877756,1717944648362,-151.0,0.00027534,7]
[328877757,1717944648372,-151.0,0.00027534,7]
[328877758,1717944648382,-151.0,0.00027534,7]
[328877759,1717944648392,-662.035008,0.00027534,7]
[328877760,1717944648402,-662.035008,0.00027534,7]
[328877761,1717944648412,-151.0,0.00027534,7]
[328877762,1717944648422,-150.0,0.00027534,2]
[328877763,1717944648432,-150.0,0.00027534,2]
[328877764,1717944648442,-150.0,0.00027534,2]
[328877765,1717944648452,-150.0,0.00027534,2]
[328877766,1717944648463,-150.0,0.00027534,2]
[328877767,1717944648472,-359.66,0.00027534,2]
[328877768,1717944648483,-153.91898316,0.00027554,2]
[328877769,1717944648492,-154.99010485,0.00027556,2]
[328877770,1717944648503,-159.85217,0.00027559,7]
[328877771,1717944648512,-159.85217,0.00027559,7]
[328877772,1717944648523,-151.0,0.00027559,7]
[328877773,1717944648533,-183.709206,0.00027559,7]
[328877774,1717944648544,-183.709206,0.00027559,7]
[328877775,1717944648554,-154.704264,0.00027559,7]
[328877776,1717944648564,-151.0,0.00027559,7]
[328877777,1717944648575,-154.704264,0.00027559,7]
[328877778,1717944648585,-151.0,0.00027559,7]
[328877779,1717944648596,-212.992456,0.00027559,7]
[328877780,1717944648606,-487.965915,0.00027559,7]
[328877781,1717944648616,-212.992456,0.00027559,7]
[328877782,1717944648626,-487.965915,0.00027559,7]
[328877783,1717944648635,-153.407032,0.00027559,7]
[328877784,1717944648645,-151.0,0.00027559,7]
[328877785,1717944648655,-151.0,0.00027559,7]
[328877786,1717944648665,-151.0,0.00027559,7]
[328877787,1717944648674,-151.0,0.00027559,7]
[328877788,1717944648684,-151.0,0.00027559,7]
[328877789,1717944648694,-226.664781,0.00027559,7]
[328877790,1717944648705,-402.647195,0.00027559,7]
[328877791,1717944648717,-402.647195,0.00027559,7]
[328877792,1717944648730,-151.0,0.00027559,7]
[328877793,1717944648739,-278.273142,0.00027559,7]
[328877794,1717944648750,-151.0,0.00027559,7]
[328877795,1717944648761,-211.430945,0.00027559,7]
[328877796,1717944648771,-151.0,0.00027559,7]
[328877797,1717944648782,-211.430945,0.00027559,7]
[328877798,1717944648793,-151.0,0.00027559,7]
[328877799,1717944648804,-151.0,0.00027559,7]
[328877800,1717944648816,-228.217838,0.00027559,7]
[328877801,1717944648826,-151.0,0.00027559,7]
[328877802,1717944648837,-228.217838,0.00027559,7]
[328877803,1717944648848,-151.0,0.00027559,7]
[328877804,1717944648859,-152.96466,0.00027559,7]
[328877805,1717944648870,-151.0,0.00027559,7]
[328877806,1717944648880,-151.0,0.00027559,7]
[328877807,1717944648892,-151.0,0.00027559,7]
[328877808,1717944648902,-151.0,0.00027559,7]
[328877809,1717944648912,-151.0,0.00027559,7]
[328877810,1717944648922,-166.170055,0.00027559,7]
[328877811,1717944648932,-151.0,0.00027559,7]
[328877812,1717944648942,-151.0,0.00027559,7]
[328877813,1717944648951,-895.733874,0.00027559,7]
[328877814,1717944648972,-151.0,0.00027559,7]
[328877815,1717944648983,-895.733874,0.00027559,7]
[328877816,1717944648994,-151.0,0.00027559,7]
[328877817,1717944649005,-152.123472,0.00027559,7]
[328877818,1717944649016,-151.0,0.00027559,7]
[328877819,1717944649026,-151.0,0.00027559,7]
[328877820,1717944649036,-2738.771996,0.00027559,7]
[328877821,1717944649046,-2738.771996,0.00027559,7]
[328877822,1717944649056,-151.0,0.00027559,7]
[328877823,1717944649066,-303.9736,0.00027559,7]
[328877824,1717944649076,-303.9736,0.00027559,7]
[328877825,1717944649086,-299.025872,0.00027559,7]
[328877826,1717944649097,-299.025872,0.00027559,7]
[328877827,1717944649108,-151.0,0.00027559,7]
[328877828,1717944649118,-151.0,0.00027559,7]
[328877829,1717944649128,-255.525729,0.00027559,7]
[328877830,1717944649138,-165.212234,0.00027559,7]
[328877831,1717944649148,-151.0,0.00027559,7]
[328877832,1717944649158,-165.212234,0.00027559,7]
[328877833,1717944649168,-151.0,0.00027559,7]
[328877834,1717944649178,-540.449146,0.00027559,7]
[328877835,1717944649188,-151.0,0.00027559,7]
[328877836,1717944649197,-540.449146,0.00027559,7]
[328877837,1717944649207,-410.211818,0.00027559,7]
[328877838,1717944649217,-151.622469,0.00027559,7]
[328877839,1717944649227,-410.211818,0.00027559,7]
[328877840,1717944649237,-366.325109,0.00027559,7]
[328877841,1717944649246,-640.727778,0.00027559,7]
[328877842,1717944649256,-366.325109,0.00027559,7]
[328877843,1717944649267,-640.727778,0.00027559,7]
[328877844,1717944649278,-151.0,0.00027559,7]
[328877845,1717944649288,-151.0,0.00027559,7]
[328877846,1717944649299,-152.111269,0.00027559,7]
[328877847,1717944649309,-151.0,0.00027559,7]
[328877848,1717944649320,-151.191176,0.00027559,7]
[328877849,1717944649331,-151.79768,0.00027559,2]
[328877850,1717944649341,-180.51496,0.00027559,2]
[328877851,1717944649351,-177.489144,0.00027559,2]
[328877852,1717944649362,-187.083679,0.00027559,2]
[328877853,1717944649373,-209.442227,0.00027559,2]
[328877854,1717944649383,-153.871108,0.00027559,2]
[328877855,1717944649393,-174.948268,0.00027559,2]
[328877856,1717944649403,-4211.346568,0.00027559,2]
[328877857,1717944649412,-194.099648,0.00027559,2]
[328877858,1717944649422,-185.999826,0.00027559,2]
[328877859,1717944649432,-4645.971004,0.00027559,2]
[328877860,1717944649442,-277.787101,0.00027559,2]
[328877861,1717944649451,-177.527736,0.00027559,2]
[328877862,1717944649461,-205.242778,0.00027559,2]
[328877863,1717944649471,-4167.832799,0.00027559,2]
[328877864,1717944649481,-1427.938493,0.00027559,2]
[328877865,1717944649491,-2275.552361,0.00027559,2]
[328877866,1717944649500,-260.36976,0.00027559,2]
[328877867,1717944649510,-3490.626553,0.00027559,2]
[328877868,1717944649520,-180.851125,0.00027559,2]
[328877869,1717944649529,-644.87475,0.00027559,2]
[328877870,1717944649539,-568.888091,0.00027559,2]
[328877871,1717944649548,-157.327532,0.00027559,2]
[328877872,1717944649558,-177.489145,0.00027559,2]
[328877873,1717944649567,-183.487912,0.00027559,2]
[328877874,1717944649577,-203.190198,0.00027559,2]
[328877875,1717944649587,-176.898971,0.00027559,2]
[328877876,1717944649597,-156.9132965,0.00027566,2]
[328877877,1717944649610,-163.75912009,0.00027569,2]
[328877878,1717944649620,-154.99010485,0.00027581,2]
[328877879,1717944649630,-500.0,0.0002759,15]
[328877880,1717944649640,-175.926658,0.00027593,2]
[328877881,1717944649650,-180.714101,0.00027593,2]
[328877882,1717944649661,-156.9132965,0.00027601,2]
[328877883,1717944649671,-155.01604512,0.00027668,2]
[328877884,1717944649681,-150.0,0.00027671,2]
[328877885,1717944649691,-223.56162716,0.00027673,2]
[328877886,1717944649702,-1241.24629,0.0002769,2]
[328877887,1717944649713,-2732.55435557,0.00027709,2]
[328877888,1717944649726,-157.57898843,0.0002774,2]
[328877889,1717944649738,-402.02655651,0.0002775,2]
[328877890,1717944649749,-742.16626991,0.00027757,2]
[328877891,1717944649760,-292.19824216,0.00027759,2]
[328877892,1717944649771,-292.19824216,0.00027772,2]
[328877893,1717944649783,-180.51496,0.0002779,2]
[328877894,1717944649798,-199.051646,0.0002779,2]
[328877895,1717944649810,-1103.607621,0.0002779,2]
[328877896,1717944649821,-234.11323,0.0002779,2]
[328877897,1717944649831,-848.450275,0.0002779,2]
[328877898,1717944649840,-2947.638528,0.0002779,2]
[328877899,1717944649851,-185.95299,0.0002779,2]
[328877900,1717944649860,-1696.900551,0.0002779,2]
[328877901,1717944649870,-156.075486,0.0002779,2]
[328877902,1717944649879,-2095.279513,0.0002779,2]
[328877903,1717944649891,-199.051646,0.0002779,2]
[328877904,1717944649901,-171.375081,0.0002779,2]
[328877905,1717944649912,-177.489149,0.0002779,2]
[328877906,1717944649922,-151.797681,0.0002779,2]
[328877907,1717944649933,-154.78947006,0.00027793,2]
[328877908,1717944649943,-157.57898843,0.00027807,2]
[328877909,1717944649954,-286.04983606,0.00027808,2]
[328877910,1717944649964,-151.36013313,0.00027832,2]
[328877911,1717944649974,-500.0,0.00027863,15]
[328877912,1717944649985,-151.36013313,0.00027891,2]
[328877913,1717944649995,-266.10450733,0.000279,2]
[328877914,1717944650006,-7712.7182974,0.000279,10]
[328877915,1717944650016,-163.34669478,0.000279,2]
[328877916,1717944650027,-1645.59849073,0.000279,2]
[328877917,1717944650039,-320.23453188,0.000279,2]
[328877918,1717944650050,-1826.59022589,0.000279,2]
[328877919,1717944650060,-193.96012212,0.000279,2]
[328877920,1717944650071,-150.0,0.000279,5]
[328877921,1717944650081,-1098.03937354,0.000279,2]
[328877922,1717944650093,-223.56162716,0.00027901,2]
[328877923,1717944650105,-212.992456,0.00027903,7]
[328877924,1717944650116,-487.965915,0.00027903,7]
[328877925,1717944650126,-212.992456,0.00027903,7]
[328877926,1717944650136,-487.965915,0.00027903,7]
[328877927,1717944650147,-151.0,0.00027903,7]
[328877928,1717944650157,-151.0,0.00027903,7]
[328877929,1717944650168,-151.0,0.00027903,7]
[328877930,1717944650179,-151.0,0.00027903,7]
[328877931,1717944650189,-151.0,0.00027903,7]
[328877932,1717944650199,-662.035008,0.00027903,7]
[328877933,1717944650209,-662.035008,0.00027903,7]
[328877934,1717944650219,-151.0,0.00027903,7]
[328877935,1717944650229,-151.0,0.00027903,7]
[328877936,1717944650239,-151.0,0.00027903,7]
[328877937,1717944650250,-151.0,0.00027903,7]
[328877938,1717944650261,-402.647195,0.00027903,7]
[328877939,1717944650271,-402.647195,0.00027903,7]
[328877940,1717944650282,-151.0,0.00027903,7]
[328877941,1717944650292,-151.0,0.00027903,7]
[328877942,1717944650302,-211.430945,0.00027903,7]
[328877943,1717944650313,-151.0,0.00027903,7]
[328877944,1717944650323,-211.430945,0.00027903,7]
[328877945,1717944650333,-151.0,0.00027903,7]
[328877946,1717944650344,-151.0,0.00027903,7]
[328877947,1717944650355,-228.217838,0.00027903,7]
[328877948,1717944650366,-151.0,0.00027903,7]
[328877949,1717944650376,-228.217838,0.00027903,7]
[328877950,1717944650387,-151.0,0.00027903,7]
[328877951,1717944650397,-151.0,0.00027903,7]
[328877952,1717944650408,-151.0,0.00027903,7]
[328877953,1717944650420,-151.0,0.00027903,7]
[328877954,1717944650429,-151.0,0.00027903,7]
[328877955,1717944650442,-151.0,0.00027903,7]
[328877956,1717944650453,-151.0,0.00027903,7]
[328877957,1717944650464,-151.0,0.00027903,7]
[328877958,1717944650474,-895.733874,0.00027903,7]
[328877959,1717944650484,-151.0,0.00027903,7]
[328877960,1717944650495,-895.733874,0.00027903,7]
[328877961,1717944650507,-151.0,0.00027903,7]
[328877962,1717944650518,-261.88294,0.00027903,7]
[328877963,1717944650528,-151.0,0.00027903,7]
[328877964,1717944650538,-2738.771996,0.00027903,7]